bitfinex-derivatives/quotes_BTCF0:USTF0_20241010
["timestamp","ask_amount","ask_price","bid_price","bid_amount"]
[1728532370478,0.084123,60942.0,60941.0,0.63907215]
[1728532371671,0.084123,60942.0,60941.0,0.40122359]
[1728532371872,0.084123,60942.0,60941.0,0.51122359]
[1728532372375,0.002,60942.0,60941.0,0.51122359]
[1728532372781,0.002,60942.0,60941.0,0.54077223]
[1728532374185,0.002,60942.0,60941.0,0.90157223]
[1728532376180,0.084123,60942.0,60941.0,0.90157223]
[1728532378675,0.084123,60942.0,60941.0,0.54077223]
[1728532379280,0.084123,60942.0,60941.0,0.66401267]
[1728532380880,0.002,60942.0,60941.0,0.66402032]
[1728532381089,0.11075403,60946.0,60945.0,0.082119]
[1728532381389,0.11075403,60946.0,60945.0,0.87136668]
[1728532382385,0.11075403,60946.0,60945.0,0.42844768]
[1728532383391,0.11275403,60946.0,60945.0,0.45644768]
[1728532383897,0.11275403,60946.0,60945.0,0.33319959]
[1728532388687,0.11275403,60946.0,60945.0,0.57107542]
[1728532389781,0.11275403,60946.0,60945.0,0.22319959]
[1728532390094,0.22275403,60946.0,60945.0,0.22319959]
[1728532391895,0.22275403,60946.0,60945.0,0.22350018]
[1728532392291,0.11275403,60946.0,60945.0,0.22350018]
[1728532392693,0.11275403,60946.0,60945.0,0.33813321]
[1728532392995,0.11275403,60946.0,60945.0,0.34679304]
[1728532393396,0.084118,60946.0,60945.0,0.34679304]
[1728532393887,0.084118,60946.0,60945.0,0.42891204]
[1728532396697,0.084118,60946.0,60945.0,0.42825153]
[1728532399200,0.084118,60946.0,60945.0,0.54288926]
[1728532399504,0.084118,60946.0,60945.0,0.42825153]
[1728532400592,0.084118,60946.0,60945.0,0.54288733]
[1728532401399,0.084118,60946.0,60945.0,0.54289466]
[1728532401697,0.084118,60946.0,60945.0,0.4197724]
[1728532404494,0.084118,60946.0,60945.0,0.3051366]
[1728532405096,0.084118,60946.0,60945.0,0.4197724]
[1728532405403,0.084118,60946.0,60945.0,0.3051366]
[1728532406805,0.084118,60946.0,60945.0,0.2230176]
[1728532410905,0.084118,60946.0,60945.0,0.11696944]
[1728532411110,0.084118,60946.0,60945.0,0.2232258]
[1728532411807,1.296358,60946.0,60945.0,0.11706442]
[1728532412308,1.296358,60946.0,60945.0,0.21534694]
[1728532413103,1.296358,60946.0,60945.0,0.10066442]
[1728532414614,1.657158,60946.0,60945.0,0.10066442]
[1728532415201,1.657158,60946.0,60945.0,0.18252707]
[1728532416209,1.657158,60946.0,60945.0,0.09346265]
[1728532417115,1.657158,60946.0,60945.0,0.0116]
[1728532419512,1.657158,60946.0,60945.0,0.07707407]
[1728532419817,1.657158,60946.0,60945.0,0.0116]
[1728532420017,1.657158,60946.0,60945.0,0.07707407]
[1728532420218,1.657158,60946.0,60945.0,0.0116]
[1728532423019,2.017958,60946.0,60945.0,0.0116]
[1728532423216,2.127958,60946.0,60945.0,0.0116]
[1728532424017,1.406358,60946.0,60945.0,0.0116]
[1728532424315,2.127958,60946.0,60945.0,0.06067044]
[1728532424521,1.417958,60946.0,60945.0,0.06067044]
[1728532424721,1.035718,60946.0,60945.0,0.0116]
[1728532426017,1.035718,60946.0,60945.0,0.07707407]
[1728532426917,1.035718,60946.0,60945.0,0.0116]
[1728532427816,0.674918,60946.0,60945.0,0.0116]
[1728532433221,0.674918,60946.0,60945.0,0.09346265]
[1728532433617,0.674918,60946.0,60945.0,0.0116]
[1728532434425,0.674918,60946.0,60945.0,0.09346265]
[1728532434626,0.674918,60946.0,60945.0,0.0116]
[1728532435326,0.674918,60946.0,60945.0,0.18273734]
[1728532436027,0.674918,60946.0,60945.0,0.0116]
[1728532437323,0.674918,60946.0,60945.0,0.09346265]
[1728532437713,0.674918,60946.0,60945.0,0.0116]
[1728532438113,0.674918,60946.0,60945.0,0.18281048]
[1728532439827,0.674918,60946.0,60945.0,0.09346265]
[1728532440025,0.674918,60946.0,60945.0,0.10096426]
[1728532440732,0.314118,60946.0,60945.0,0.10096426]
[1728532440929,0.674918,60946.0,60945.0,0.10096426]
[1728532445125,0.674918,60946.0,60945.0,0.10102117]
[1728532447833,0.674918,60946.0,60945.0,0.09351669]
[1728532448927,0.674918,60946.0,60945.0,0.0116]
[1728532450130,0.674918,60946.0,60945.0,0.09352204]
[1728532451233,0.314118,60946.0,60945.0,0.09352204]
[1728532451538,0.674918,60946.0,60945.0,0.09352204]
[1728532452526,0.314118,60946.0,60945.0,0.09352204]
[1728532452727,0.674918,60946.0,60945.0,0.09352204]
[1728532453233,0.314118,60946.0,60945.0,0.18300736]
[1728532453726,0.444918,60946.0,60945.0,0.1216]
[1728532454034,0.554918,60946.0,60945.0,0.0116]
[1728532454635,0.194118,60946.0,60945.0,0.0116]
[1728532454835,0.194118,60946.0,60945.0,0.11790129]
[1728532455037,0.194118,60946.0,60945.0,0.20708309]
[1728532455340,0.194118,60946.0,60945.0,0.32178776]
[1728532455637,0.194118,60946.0,60945.0,0.20708309]
[1728532456939,0.194118,60946.0,60945.0,0.19901539]
[1728532458628,0.194118,60946.0,60945.0,0.1007818]
[1728532459045,0.194118,60946.0,60945.0,0.1932818]
[1728532463440,0.194118,60946.0,60945.0,0.19310626]
[1728532464839,0.194118,60946.0,60945.0,0.2992218]
[1728532468446,0.194118,60946.0,60945.0,0.29938513]
[1728532477350,0.194118,60946.0,60945.0,0.29939745]
[1728532479948,0.194118,60946.0,60945.0,0.19319711]
[1728532480954,0.194118,60946.0,60945.0,0.29940229]
[1728532482853,0.194118,60946.0,60945.0,0.19319711]
[1728532483054,0.194118,60946.0,60945.0,0.29940941]
[1728532483964,0.002,60946.0,60945.0,0.49152841]
[1728532485159,0.084117,60946.0,60945.0,0.29940941]
[1728532485749,0.194117,60946.0,60945.0,0.29940941]
[1728532486856,0.194117,60946.0,60945.0,0.42258278]
[1728532487360,0.194117,60946.0,60945.0,0.36118278]
[1728532487560,0.194117,60946.0,60945.0,0.47586545]
[1728532487761,0.194117,60946.0,60945.0,0.44476545]
[1728532490257,0.194117,60946.0,60945.0,0.32159208]
[1728532490748,0.194117,60946.0,60945.0,0.20690941]
[1728532492564,0.194117,60946.0,60945.0,0.2066385]
[1728532495754,0.194117,60946.0,60945.0,0.32979674]
[1728532496161,0.194117,60946.0,60945.0,0.2066385]
[1728532501068,0.194117,60946.0,60945.0,0.20687748]
[1728532501568,0.226117,60946.0,60945.0,0.20687748]
[1728532503364,0.226117,60946.0,60945.0,0.100688]
[1728532503365,0.336117,60946.0,60945.0,0.100688]
[1728532504163,0.226117,60946.0,60945.0,0.100688]
[1728532504369,0.336117,60946.0,60945.0,0.100688]
[1728532505361,0.336117,60946.0,60945.0,0.20710002]
[1728532505760,0.336117,60946.0,60945.0,0.100688]
[1728532505959,0.336117,60946.0,60945.0,0.20704731]
[1728532506166,0.336117,60946.0,60945.0,0.20709054]
[1728532506663,0.336117,60946.0,60945.0,0.100688]
[1728532509170,0.336117,60946.0,60945.0,0.19900403]
[1728532509970,0.336117,60946.0,60945.0,0.19899487]
[1728532510364,0.336117,60946.0,60945.0,0.100688]
[1728532511668,0.336117,60946.0,60944.0,0.08193211]
[1728532511870,0.1727,60945.0,60943.0,0.08193211]
[1728532512058,0.19212,60944.0,60943.0,0.08193211]
[1728532512358,0.082121,60943.0,60942.0,0.08193211]
[1728532512556,0.652921,60943.0,60942.0,0.08193211]
[1728532513359,0.082123,60942.0,60941.0,0.08193211]
[1728532513564,0.302123,60942.0,60941.0,0.08193211]
[1728532513872,0.082124,60941.0,60940.0,0.08193211]
[1728532514072,0.292124,60941.0,60940.0,0.08193211]
[1728532514565,0.082128,60938.0,60937.0,0.0114]
[1728532514762,0.082132,60935.0,60934.0,0.0114]
[1728532514963,0.11,60934.0,60932.0,0.0328]
[1728532515163,0.11,60934.0,60933.0,0.10559996]
[1728532516372,0.11,60934.0,60933.0,0.11359996]
[1728532516373,0.193133,60934.0,60933.0,0.11359996]
[1728532516560,0.194133,60934.0,60933.0,0.11359996]
[1728532519565,0.22344931,60934.0,60933.0,0.11359996]
[1728532521367,0.11344931,60934.0,60933.0,0.11359996]
[1728532521761,0.11344931,60934.0,60933.0,0.19573496]
[1728532524673,0.11344931,60934.0,60933.0,0.195788]
[1728532526676,0.11344931,60934.0,60933.0,0.28442384]
[1728532527273,0.11344931,60934.0,60933.0,1.04442384]
[1728532529487,0.11344931,60934.0,60933.0,1.04448298]
[1728532529882,0.11344931,60934.0,60933.0,0.96234798]
[1728532537388,0.11344931,60934.0,60933.0,1.07723569]
[1728532538397,0.11344931,60934.0,60933.0,1.20010008]
[1728532539187,0.11344931,60934.0,60933.0,1.20013186]
[1728532540191,0.11344931,60934.0,60933.0,1.08546339]
[1728532540796,0.11344931,60934.0,60933.0,0.32546339]
[1728532541790,0.22344931,60934.0,60933.0,0.32546339]
[1728532542600,0.03131631,60934.0,60933.0,0.76839839]
[1728532542802,0.11344931,60934.0,60933.0,0.79407737]
[1728532543498,0.11344931,60934.0,60933.0,0.76839839]
[1728532543903,0.11344931,60934.0,60933.0,0.79407728]
[1728532544399,0.11344931,60934.0,60933.0,0.92539971]
[1728532547001,0.11344931,60934.0,60933.0,0.89972082]
[1728532547507,0.11344931,60934.0,60933.0,0.92539971]
[1728532548908,0.11344931,60934.0,60933.0,0.40706137]
[1728532549398,0.11344931,60934.0,60933.0,0.28440591]
[1728532553310,0.11344931,60934.0,60933.0,0.52215456]
[1728532553496,0.11344931,60934.0,60933.0,0.39961409]
[1728532555310,0.11344931,60934.0,60933.0,0.40759198]
[1728532556519,0.11344931,60934.0,60933.0,0.28471595]
[1728532566423,0.11344931,60934.0,60933.0,0.40757592]
[1728532566623,0.11344931,60934.0,60933.0,0.40758996]
[1728532570117,0.11344931,60934.0,60933.0,0.32545496]
[1728532571827,0.11344931,60934.0,60933.0,0.45677739]
[1728532572030,0.11344931,60934.0,60933.0,0.35113401]
[1728532572230,0.11344931,60934.0,60933.0,0.45677739]
[1728532572624,0.11344931,60934.0,60933.0,0.53891239]
[1728532574018,0.11344931,60934.0,60933.0,0.89971239]
[1728532577125,0.11344931,60934.0,60933.0,0.81757739]
[1728532578432,0.11344931,60934.0,60933.0,0.45677739]
[1728532578628,0.11344931,60934.0,60933.0,0.81757739]
[1728532578823,0.11344931,60934.0,60933.0,0.45677739]
[1728532579033,0.11344931,60934.0,60933.0,0.32545496]
[1728532579541,0.23344931,60934.0,60933.0,0.32545496]
[1728532579747,1.31580931,60934.0,60933.0,0.11088293]
[1728532579943,1.31580931,60934.0,60933.0,0.00506461]
[1728532580144,1.31580931,60934.0,60933.0,0.08720656]
[1728532580438,1.31580931,60934.0,60930.0,0.10995009]
[1728532580439,0.082136,60932.0,60931.0,0.08214195]
[1728532580643,0.302136,60932.0,60931.0,0.08214195]
[1728532581233,0.22,60932.0,60930.0,0.08214195]
[1728532581445,0.253737,60931.0,60930.0,0.08214195]
[1728532581635,0.363737,60931.0,60930.0,0.08214195]
[1728532582241,0.363737,60931.0,60927.0,0.0114]
[1728532582242,0.2816,60931.0,60929.0,0.08214195]
[1728532582538,0.552939,60930.0,60929.0,0.08214195]
[1728532583242,0.08214,60929.0,60928.0,0.08214195]
[1728532583543,0.19214,60929.0,60928.0,0.08214195]
[1728532584745,0.55394,60929.0,60928.0,0.08214195]
[1728532585335,0.55394,60929.0,60927.0,0.08214195]
[1728532585336,0.082142,60928.0,60927.0,0.08214195]
[1728532585642,0.552942,60928.0,60927.0,0.08214195]
[1728532586336,0.4708,60928.0,60926.0,0.08214195]
[1728532586533,0.192143,60927.0,60926.0,0.08214195]
[1728532586838,0.082144,60926.0,60925.0,0.08214195]
[1728532587150,0.21,60926.0,60924.0,0.08214195]
[1728532587446,0.21,60926.0,60922.0,0.08214195]
[1728532587447,0.082148,60923.0,60922.0,0.08214195]
[1728532587646,0.552948,60923.0,60922.0,0.08214195]
[1728532588250,0.552948,60923.0,60921.0,0.08214195]
[1728532588544,0.19215,60922.0,60921.0,0.08214195]
[1728532589236,0.082152,60920.0,60919.0,0.08214195]
[1728532589437,0.082154,60919.0,60918.0,0.08214195]
[1728532590249,0.11,60920.0,60918.0,0.08214195]
[1728532590445,0.082154,60919.0,60918.0,0.08214195]
[1728532591145,0.083154,60919.0,60918.0,0.08214195]
[1728532591349,0.082155,60918.0,60917.0,0.08214195]
[1728532591546,0.082156,60917.0,60916.0,0.08214195]
[1728532591744,0.192156,60917.0,60916.0,0.08214195]
[1728532592348,0.192156,60917.0,60915.0,0.08214195]
[1728532592349,0.082158,60916.0,60915.0,0.08214195]
[1728532592548,0.192158,60916.0,60915.0,0.08214195]
[1728532592938,0.082162,60913.0,60911.0,0.10995009]
[1728532593246,0.082162,60913.0,60909.0,0.3646]
[1728532593247,0.192163,60912.0,60910.0,0.09855009]
[1728532594349,0.082164,60911.0,60909.0,0.18071709]
[1728532594545,0.11,60912.0,60908.0,0.09855009]
[1728532594747,0.082163,60912.0,60911.0,0.0818368]
[1728532595247,0.001,60913.0,60910.0,0.0818368]
[1728532595248,0.3618,60913.0,60910.0,0.0818368]
[1728532595454,0.082164,60911.0,60910.0,0.0818368]
[1728532595651,0.082166,60910.0,60909.0,0.0818368]
[1728532595837,0.192166,60910.0,60907.0,0.0818368]
[1728532596042,0.11,60908.0,60907.0,0.08182544]
[1728532596244,0.11,60908.0,60907.0,0.17210363]
[1728532596245,0.192169,60908.0,60907.0,0.17210363]
[1728532596446,0.192169,60908.0,60907.0,0.09027819]
[1728532597141,0.193169,60908.0,60907.0,0.09027819]
[1728532597451,0.193169,60908.0,60907.0,0.17207121]
[1728532597638,0.193169,60908.0,60907.0,0.08179302]
[1728532598257,0.083169,60908.0,60907.0,0.08179302]
[1728532598444,0.193169,60908.0,60907.0,0.08179302]
[1728532598649,0.194169,60908.0,60907.0,0.08779302]
[1728532599338,0.084169,60908.0,60907.0,0.08779302]
[1728532599541,0.194169,60908.0,60907.0,0.08779302]
[1728532599954,0.194169,60908.0,60907.0,0.006]
[1728532601750,0.22327991,60908.0,60907.0,0.006]
[1728532604953,0.22327991,60908.0,60907.0,0.09623963]
[1728532608655,0.082175,60903.0,60902.0,0.0114]
[1728532608858,0.082175,60903.0,60897.0,0.0114]
[1728532608859,0.082182,60898.0,60897.0,0.0114]
[1728532609152,0.4708,60898.0,60894.0,0.093587]
[1728532609344,0.4708,60898.0,60894.0,0.082187]
[1728532609345,0.082186,60895.0,60894.0,0.082187]
[1728532609952,0.552983,60898.0,60895.0,0.082186]
[1728532610152,0.552983,60898.0,60897.0,0.09834693]
[1728532610353,0.082183,60897.0,60896.0,0.18053193]
[1728532610544,0.082183,60897.0,60896.0,0.082185]
[1728532610749,0.192183,60897.0,60896.0,0.082185]
[1728532611450,0.192183,60897.0,60896.0,0.18048072]
[1728532611653,0.192183,60897.0,60896.0,0.082185]
[1728532612763,0.194183,60897.0,60896.0,0.54126857]
[1728532613059,0.194183,60897.0,60896.0,0.55179187]
[1728532613060,0.002,60897.0,60896.0,0.55179187]
[1728532613260,0.002,60897.0,60896.0,0.5929036]
[1728532613460,0.002,60897.0,60896.0,0.61859843]
[1728532615649,0.002,60897.0,60896.0,0.61862779]
[1728532616551,0.002,60897.0,60896.0,0.55182123]
[1728532616768,0.002,60897.0,60896.0,0.61864821]
[1728532617067,0.002,60897.0,60896.0,0.25784821]
[1728532618060,0.002,60897.0,60896.0,0.37240024]
[1728532618256,0.002,60897.0,60896.0,0.49881829]
[1728532619054,0.084183,60897.0,60896.0,0.37240024]
[1728532619264,0.084183,60897.0,60896.0,0.25784821]
[1728532620266,0.084183,60897.0,60896.0,0.19104201]
[1728532620454,0.084183,60897.0,60896.0,0.19116761]
[1728532623562,0.084183,60897.0,60896.0,0.28265861]
[1728532623967,0.084183,60897.0,60896.0,0.28272993]
[1728532626572,0.084183,60897.0,60896.0,0.52396305]
[1728532627368,0.084183,60897.0,60896.0,0.40941102]
[1728532627568,0.084183,60897.0,60896.0,0.52431159]
[1728532628274,0.084183,60897.0,60896.0,0.5243748]
[1728532629769,0.084183,60897.0,60896.0,0.3976305]
[1728532629975,0.084183,60897.0,60896.0,0.28272993]
[1728532630285,0.084183,60897.0,60896.0,0.52450608]
[1728532630970,0.084183,60897.0,60896.0,0.3976305]
[1728532631170,0.084183,60897.0,60896.0,0.28272993]
[1728532631377,0.084183,60897.0,60896.0,0.3976305]
[1728532631778,0.084183,60897.0,60896.0,0.28272993]
[1728532633281,0.084183,60897.0,60896.0,0.3976305]
[1728532633477,0.084183,60897.0,60896.0,0.44226851]
[1728532633781,0.084183,60897.0,60896.0,0.20054493]
[1728532635178,0.084183,60897.0,60896.0,0.3154455]
[1728532635378,0.084183,60897.0,60896.0,0.44240532]
[1728532636377,0.084183,60897.0,60896.0,0.32750475]
[1728532644987,0.084183,60897.0,60896.0,0.32760981]
[1728532645286,0.084183,60897.0,60896.0,0.442665]
[1728532645480,0.084183,60897.0,60896.0,0.31560012]
[1728532646283,0.084183,60897.0,60896.0,0.31560894]
[1728532646485,0.114883,60897.0,60896.0,0.20054493]
[1728532647187,0.114883,60897.0,60896.0,0.09149107]
[1728532647188,0.234883,60897.0,60896.0,0.09149107]
[1728532647388,0.234883,60897.0,60896.0,0.20109252]
[1728532647789,0.234883,60897.0,60896.0,0.20155108]
[1728532649985,0.234883,60897.0,60896.0,0.09195009]
[1728532650306,0.224883,60897.0,60896.0,0.09195009]
[1728532650493,0.194183,60897.0,60896.0,0.09195009]
[1728532653391,0.194183,60897.0,60896.0,0.19051709]
[1728532653995,0.194183,60897.0,60896.0,0.09195009]
[1728532654693,0.194183,60897.0,60896.0,0.19051709]
[1728532654905,0.194183,60897.0,60896.0,0.09195009]
[1728532655089,0.194183,60897.0,60896.0,0.19051709]
[1728532655803,0.194183,60897.0,60896.0,0.09195009]
[1728532655997,0.194183,60897.0,60896.0,0.19050863]
[1728532656694,0.084183,60897.0,60896.0,0.19050863]
[1728532656897,0.194183,60897.0,60896.0,0.19050863]
[1728532657092,0.194183,60897.0,60896.0,0.09195009]
[1728532658895,0.084183,60897.0,60896.0,0.09195009]
[1728532659203,0.084183,60897.0,60896.0,0.20140829]
[1728532659590,0.084183,60897.0,60896.0,0.32831114]
[1728532660000,0.084183,60897.0,60896.0,0.44328783]
[1728532660400,0.084183,60897.0,60896.0,0.31638498]
[1728532661094,0.084183,60897.0,60896.0,0.44338182]
[1728532662496,0.084183,60897.0,60896.0,0.31638498]
[1728532663299,0.084183,60897.0,60896.0,0.31616671]
[1728532663494,0.084183,60897.0,60896.0,0.20119002]
[1728532671311,0.084183,60897.0,60896.0,0.31616671]
[1728532671506,0.084183,60897.0,60896.0,0.20119002]
[1728532672014,0.084183,60897.0,60896.0,0.44320024]
[1728532672511,0.084183,60897.0,60896.0,0.20119002]
[1728532674834,0.084183,60897.0,60896.0,0.09178537]
[1728532675422,0.204183,60897.0,60896.0,0.09178537]
[1728532677024,0.236483,60897.0,60896.0,0.09178537]
[1728532678126,0.597283,60897.0,60896.0,0.09178537]
[1728532678931,0.236483,60897.0,60896.0,0.09178537]
[1728532679131,0.597283,60897.0,60896.0,0.09178537]
[1728532679435,0.236483,60897.0,60896.0,0.09178537]
[1728532679633,0.597283,60897.0,60896.0,0.09178537]
[1728532682725,0.597283,60897.0,60896.0,0.20133306]
[1728532683730,0.236483,60897.0,60896.0,0.20133306]
[1728532683924,0.597283,60897.0,60896.0,0.20133306]
[1728532684531,0.597283,60897.0,60896.0,0.20147837]
[1728532685235,0.236483,60897.0,60896.0,0.20147837]
[1728532685435,0.597283,60897.0,60896.0,0.20147837]
[1728532692041,0.707283,60897.0,60896.0,0.20147837]
[1728532694145,0.707283,60897.0,60896.0,0.20162938]
[1728532694339,0.346483,60897.0,60896.0,0.20162938]
[1728532694645,0.707283,60897.0,60896.0,0.20162938]
[1728532696138,0.346483,60897.0,60896.0,0.20162938]
[1728532696538,0.707283,60897.0,60896.0,0.20162938]
[1728532696740,0.674983,60897.0,60896.0,0.20162938]
[1728532696947,0.314183,60897.0,60896.0,0.20162938]
[1728532697243,0.674983,60897.0,60896.0,0.20162938]
[1728532698143,0.314183,60897.0,60896.0,0.20162938]
[1728532698540,0.674983,60897.0,60896.0,0.20162938]
[1728532698741,0.314183,60897.0,60896.0,0.20162938]
[1728532699058,0.674983,60897.0,60896.0,0.20162938]
[1728532699239,0.314183,60897.0,60896.0,0.20162938]
[1728532699751,0.674983,60897.0,60896.0,0.20162938]
[1728532700041,0.314183,60897.0,60896.0,0.20162938]
[1728532700242,0.674983,60897.0,60896.0,0.20162938]
[1728532700633,0.314183,60897.0,60896.0,0.20162938]
[1728532700834,0.674983,60897.0,60896.0,0.20162938]
[1728532702036,0.444983,60897.0,60896.0,0.20162938]
[1728532702237,0.554983,60897.0,60896.0,0.20162938]
[1728532703450,0.194183,60897.0,60896.0,0.20162938]
[1728532706650,0.554983,60897.0,60896.0,0.20162938]
[1728532706952,0.194183,60897.0,60896.0,0.20162938]
[1728532707143,0.554983,60897.0,60896.0,0.20162938]
[1728532707638,0.002,60897.0,60896.0,0.28381438]
[1728532708046,0.002,60897.0,60896.0,0.39879107]
[1728532708446,0.002,60897.0,60896.0,0.28381438]
[1728532709046,0.002,60897.0,60896.0,0.39879107]
[1728532709247,0.084183,60897.0,60896.0,0.28381438]
[1728532709642,0.084183,60897.0,60896.0,0.39879107]
[1728532709849,0.084183,60897.0,60896.0,0.52596525]
[1728532710345,0.084183,60897.0,60896.0,0.39879107]
[1728532710546,0.084183,60897.0,60896.0,0.28381438]
[1728532712650,0.084183,60897.0,60896.0,0.25632784]
[1728532713156,0.084183,60897.0,60896.0,0.25626227]
[1728532714348,0.084183,60897.0,60896.0,0.16434203]
[1728532717049,0.084183,60897.0,60895.0,0.08215703]
[1728532717050,0.002,60897.0,60895.0,0.08215703]
[1728532717253,0.002,60897.0,60894.0,0.0651]
[1728532717254,0.084183,60897.0,60896.0,0.08215703]
[1728532717642,0.084183,60897.0,60896.0,0.17401376]
[1728532717847,0.084183,60897.0,60896.0,0.1740113]
[1728532718047,0.084183,60897.0,60896.0,0.08215703]
[1728532718247,0.084183,60897.0,60896.0,0.09184348]
[1728532718449,0.084183,60897.0,60896.0,0.08213684]
[1728532718652,0.084183,60897.0,60896.0,0.17398064]
[1728532718849,0.082185,60896.0,60895.0,0.08213684]
[1728532719056,0.192185,60896.0,60895.0,0.17400221]
[1728532719351,0.192185,60896.0,60895.0,0.09186537]
[1728532719749,0.192185,60896.0,60895.0,0.31629468]
[1728532719947,0.192185,60896.0,60895.0,0.20131799]
[1728532720159,0.192185,60896.0,60895.0,0.31629468]
[1728532720455,0.192185,60896.0,60895.0,0.44340795]
[1728532720660,0.192185,60896.0,60895.0,0.31629468]
[1728532720862,0.193185,60896.0,60895.0,0.20131799]
[1728532721361,0.194185,60896.0,60895.0,0.31629468]
[1728532721569,0.194185,60896.0,60895.0,0.20131799]
[1728532721953,0.194185,60896.0,60895.0,0.32840218]
[1728532722153,0.194185,60896.0,60895.0,0.44333292]
[1728532722353,0.194185,60896.0,60895.0,0.31629468]
[1728532722563,0.194185,60896.0,60895.0,0.44334553]
[1728532722861,0.194185,60896.0,60895.0,0.20131799]
[1728532723160,0.194185,60896.0,60895.0,0.44339813]
[1728532723361,0.194185,60896.0,60895.0,0.4433099]
[1728532723655,0.194185,60896.0,60895.0,0.44333715]
[1728532723857,0.194185,60896.0,60895.0,0.31623982]
[1728532724064,0.194185,60896.0,60895.0,0.44334128]
[1728532724451,0.194185,60896.0,60895.0,0.44334201]
[1728532725353,0.194185,60896.0,60895.0,0.32835006]
[1728532725554,0.194185,60896.0,60895.0,0.44334567]
[1728532725749,0.194185,60896.0,60895.0,0.4433459]
[1728532725959,0.194185,60896.0,60895.0,0.31625874]
[1728532726157,0.194185,60896.0,60895.0,0.20126313]
[1728532727855,0.194185,60896.0,60895.0,0.09181873]
[1728532732266,0.112,60896.0,60895.0,0.09189812]
[1728532732466,0.194185,60896.0,60895.0,0.09189812]
[1728532734857,0.194185,60896.0,60895.0,0.32867637]
[1728532735253,0.194185,60896.0,60895.0,0.45959298]
[1728532735454,0.194185,60896.0,60895.0,0.32867637]
[1728532735664,0.194185,60896.0,60895.0,0.4437549]
[1728532735864,0.194185,60896.0,60895.0,0.32867637]
[1728532736061,0.194185,60896.0,60895.0,0.44375664]
[1728532736262,0.194185,60896.0,60895.0,0.32867637]
[1728532737062,0.194185,60896.0,60895.0,0.32858427]
[1728532742774,0.194185,60896.0,60895.0,0.09188893]
[1728532743162,0.194185,60896.0,60895.0,0.19054697]
[1728532744271,0.194185,60896.0,60895.0,0.09188893]
[1728532747279,0.194185,60896.0,60895.0,0.19054697]
[1728532749873,0.194185,60896.0,60895.0,0.45959385]
[1728532750077,0.194185,60896.0,60895.0,0.32867724]
[1728532754779,0.112,60896.0,60894.0,0.27820361]
[1728532754982,0.194185,60896.0,60895.0,0.32878269]
[1728532755875,0.192185,60896.0,60895.0,0.32878269]
[1728532756075,0.194185,60896.0,60895.0,0.32878269]
[1728532759082,0.194185,60896.0,60895.0,0.4596993]
[1728532760803,0.194185,60896.0,60895.0,0.5418853]
[1728532762189,0.084185,60896.0,60895.0,0.5418853]
[1728532763092,0.084185,60896.0,60895.0,0.41096869]
[1728532764099,0.084185,60896.0,60895.0,0.32878269]
[1728532765001,0.084185,60896.0,60895.0,0.09194442]
[1728532765002,0.194185,60896.0,60895.0,0.09194442]
[1728532765201,0.194185,60896.0,60895.0,0.19059829]
[1728532768800,0.194185,60896.0,60895.0,0.09194442]
[1728532772897,0.194185,60896.0,60895.0,0.32876142]
[1728532774004,0.194185,60896.0,60895.0,0.32875352]
[1728532776908,0.194185,60896.0,60895.0,0.46029066]
[1728532778308,0.084185,60896.0,60895.0,0.46029066]
[1728532779905,0.084185,60896.0,60895.0,0.20152077]
[1728532783504,0.002,60896.0,60895.0,0.20152675]
[1728532783710,0.084185,60896.0,60895.0,0.20152675]
[1728532787911,0.084185,60896.0,60895.0,0.46030531]
[1728532793311,0.084185,60896.0,60895.0,0.46010179]
[1728532793517,0.084185,60896.0,60895.0,0.46011141]
[1728532799819,0.084185,60896.0,60895.0,0.46011677]
[1728532803020,0.084185,60896.0,60895.0,0.19054675]
[1728532809930,0.084185,60896.0,60895.0,0.32861181]
[1728532811726,0.084185,60896.0,60895.0,0.20142682]
[1728532815346,0.084185,60896.0,60895.0,0.31653354]
[1728532815533,0.084185,60896.0,60895.0,0.20142682]
[1728532816432,0.084185,60896.0,60895.0,0.32867749]
[1728532818031,0.084185,60896.0,60895.0,0.20142682]
[1728532820531,0.084185,60896.0,60895.0,0.28361005]
[1728532820733,0.02924906,60901.0,60895.0,0.58551196]
[1728532820734,0.082182,60899.0,60895.0,0.58551196]
[1728532820935,0.082182,60899.0,60894.0,0.0651]
[1728532820936,0.0403,60907.0,60899.0,0.12]
[1728532821140,0.3608,60908.0,60905.0,0.12]
[1728532821442,0.082171,60906.0,60905.0,0.12]
[1728532821633,0.082171,60906.0,60905.0,0.21155875]
[1728532822044,0.082171,60906.0,60905.0,0.31014363]
[1728532823135,0.082171,60906.0,60905.0,0.31114363]
[1728532823334,0.082171,60906.0,60905.0,0.21255875]
[1728532824144,0.082171,60906.0,60905.0,0.21155875]
[1728532824443,0.084171,60906.0,60905.0,0.21355875]
[1728532824846,0.084171,60906.0,60905.0,0.09355875]
[1728532825141,0.084171,60906.0,60905.0,0.20309523]
[1728532832240,0.084171,60906.0,60905.0,0.19222623]
[1728532833738,0.084171,60906.0,60905.0,0.09374213]
[1728532834339,0.084171,60906.0,60905.0,0.19222228]
[1728532836447,0.084171,60906.0,60905.0,0.09374213]
[1728532838849,0.084171,60906.0,60905.0,0.32303725]
[1728532839446,0.084171,60906.0,60905.0,0.40521025]
[1728532840343,0.084171,60906.0,60905.0,0.32303725]
[1728532843553,0.084171,60906.0,60905.0,0.43814661]
[1728532843851,0.084171,60906.0,60905.0,0.43802661]
[1728532844542,0.084171,60906.0,60905.0,0.56488968]
[1728532845562,0.084171,60906.0,60905.0,0.56490295]
[1728532848544,0.084171,60906.0,60905.0,0.44979359]
[1728532852252,0.204171,60906.0,60905.0,0.32979359]
[1728532855154,0.204171,60906.0,60905.0,0.09366093]
[1728532857060,0.204171,60906.0,60905.0,0.002]
[1728532857061,0.304171,60906.0,60905.0,0.002]
[1728532861165,0.184171,60906.0,60905.0,0.002]
[1728532861362,0.304171,60906.0,60905.0,0.002]
[1728532861862,0.184171,60906.0,60905.0,0.002]
[1728532862054,0.084171,60906.0,60905.0,0.002]
[1728532862255,0.084171,60906.0,60905.0,0.20344849]
[1728532862454,0.002,60906.0,60905.0,0.20344849]
[1728532862656,0.002,60906.0,60905.0,0.52758888]
[1728532862861,0.002,60906.0,60905.0,0.41247363]